[Event "44th Chess Olympiad Open 2022"]
[Site "Chennai"]
[Date "2022.08.06"]
[Round "8.79"]
[White "Cisse, Amadou Lamine"]
[Black "Koumba, Mounguen Jose Evrar"]
[Result "1-0"]
[WhiteElo "2005"]
[BlackElo "1942"]
[Annotator "NA RC"]
[PlyCount "153"]
[EventDate "2022.??.??"]
[TimeControl "60"]

1. e4 {[%emt 0:00:18]} c5 {[%emt 0:00:22]} 2. d3 {[%emt 0:02:06]} Nc6 {[%emt 0:
00:00]} 3. g3 {[%emt 0:01:02]} d6 {[%emt 0:01:12]} 4. Bg2 {[%emt 0:00:41]} g6 {
[%emt 0:00:19]} 5. Nf3 {[%emt 0:02:58]} Bg7 {[%emt 0:00:10]} 6. Nbd2 {[%emt 0:
00:00]} Nh6 {[%emt 0:00:58]} 7. c3 {[%emt 0:02:39]} O-O {[%emt 0:00:33]} 8. O-O
{[%emt 0:03:29]} f5 {[%emt 0:03:03]} 9. Nc4 {[%emt 0:03:35]} Ng4 {[%emt 0:00:
00]} 10. exf5 {[%emt 0:07:16]} Bxf5 {[%emt 0:09:46]} 11. Nh4 {[%emt 0:00:24]}
Be6 {[%emt 0:04:36]} 12. h3 {[%emt 0:13:42]} Nf6 {[%emt 0:07:03]} 13. Nd2 {
[%emt 0:04:26]} Qd7 {[%emt 0:00:52]} 14. Kh2 {[%emt 0:00:37]} g5 {[%emt 0:00:
00]} 15. Nhf3 {[%emt 0:01:24]} g4 {[%emt 0:00:05]} 16. Ng5 {[%emt 0:01:19]}
gxh3 {[%emt 0:01:07]} 17. Nxe6 {[%emt 0:00:38]} hxg2 {[%emt 0:02:50]} 18. Re1 {
[%emt 0:00:52]} Ne5 {[%emt 0:04:06]} 19. Nxf8 {[%emt 0:14:50]} Nfg4+ {[%emt 0:
00:00]} 20. Kxg2 {[%emt 0:01:40]} Rxf8 {[%emt 0:00:06]} 21. f3 {[%emt 0:21:43]}
Nxd3 {[%emt 0:14:38]} 22. fxg4 {[%emt 0:04:38]} Nxe1+ {[%emt 0:00:28]} 23. Qxe1
{[%emt 0:00:06]} Qxg4 {[%emt 0:00:09]} 24. Qe4 {[%emt 0:01:01]} Qd1 {[%emt 0:
00:00]} 25. Nf3 {[%emt 0:03:28]} d5 {[%emt 0:00:43]} 26. Qg4 {[%emt 0:01:24]}
Qe2+ {[%emt 0:00:13]} 27. Kh3 {[%emt 0:01:05]} Qxf3 {[%emt 0:02:27]} 28. Qxf3 {
[%emt 0:01:00]} Rxf3 {[%emt 0:00:07]} 29. Bf4 {[%emt 0:00:45]} e5 {[%emt 0:00:
00]} 30. Kg4 {[%emt 0:00:07]} Rf2 {[%emt 0:00:14]} 31. Be3 {[%emt 0:00:06]}
Rxb2 {[%emt 0:01:33]} 32. Bxc5 {[%emt 0:00:28]} b6 {[%emt 0:00:26]} 33. Bb4 {
[%emt 0:01:41]} a5 {[%emt 0:00:17]} 34. Bd6 {[%emt 0:00:06]} Rc2 {[%emt 0:00:
00]} 35. Rb1 {[%emt 0:01:56]} d4 {[%emt 0:04:06]} 36. cxd4 {[%emt 0:00:12]}
exd4 {[%emt 0:00:06]} 37. Rxb6 {[%emt 0:00:16]} d3 {[%emt 0:00:52]} 38. Kf5 {
[%emt 0:01:15]} Rf2+ {[%emt 0:00:38]} 39. Bf4 {[%emt 0:01:16]} Rxa2 {[%emt 0:
00:00]} 40. Rb8+ {[%emt 0:00:34]} Bf8 {[%emt 0:00:12]} 41. Rd8 {[%emt 0:31:06]}
a4 {[%emt 0:37:12]} 42. Rxd3 {[%emt 0:00:50]} a3 {[%emt 0:01:21]} 43. Rd8 {
[%emt 0:00:10]} Kf7 {[%emt 0:13:23]} 44. Rd7+ {[%emt 0:01:17]} Ke8 {[%emt 0:00:
00]} 45. Rxh7 {[%emt 0:00:00]} Rf2 {[%emt 0:00:00]} 46. Ra7 {[%emt 0:00:00]}
Bc5 {[%emt 0:00:00]} 47. Ra8+ {[%emt 0:00:00]} Kd7 {[%emt 0:00:00]} 48. Ke4 {
[%emt 0:00:00]} Kc6 {[%emt 0:00:00]} 49. Rc8+ {[%emt 0:00:00]} Kb6 {[%emt 0:00:
00]} 50. Kd5 {[%emt 0:00:00]} a2 {[%emt 0:00:00]} 51. Rc6+ {[%emt 0:00:00]} Kb7
{[%emt 0:00:00]} 52. Rc7+ {[%emt 0:00:00]} Ka6 {[%emt 0:00:00]} 53. Be5 {
[%emt 0:00:00]} Re2 {[%emt 0:00:00]} 54. Bg7 {[%emt 0:00:00]} Bf2 {[%emt 0:00:
00]} 55. g4 {[%emt 0:00:00]} Bg3 {[%emt 0:00:00]} 56. Rc8 {[%emt 0:00:00]} Kb5
{[%emt 0:00:00]} 57. Ra8 {[%emt 0:00:00]} Kb4 {[%emt 0:00:00]} 58. g5 {[%emt 0:
00:00]} Bh4 {[%emt 0:00:00]} 59. g6 {[%emt 0:00:00]} Kb3 {[%emt 0:00:00]} 60.
Ba1 {[%emt 0:00:00]} Rg2 {[%emt 0:00:00]} 61. g7 {[%emt 0:00:00]} Bd8 {[%emt 0:
00:00]} 62. Rb8+ {[%emt 0:00:45]} Ka3 {[%emt 0:00:25]} 63. Kc4 {[%emt 0:01:55]}
Rg4+ {[%emt 0:00:24]} 64. Kd3 {[%emt 0:00:15]} Rg1 {[%emt 0:00:36]} 65. Bb2+ {
[%emt 0:00:33]} Ka4 {[%emt 0:00:06]} 66. Kc4 {[%emt 0:01:20]} Rg4+ {[%emt 0:00:
00]} 67. Kd5 {[%emt 0:00:52]} Rg2 {[%emt 0:00:42]} 68. Bd4 {[%emt 0:00:25]} Rd2
{[%emt 0:00:44]} 69. Ra8+ {[%emt 0:00:24]} Ba5 {[%emt 0:00:46]} 70. g8=Q {
[%emt 0:02:04]} Rxd4+ {[%emt 0:00:07]} 71. Kxd4 {[%emt 0:00:10]} a1=Q+ {
[%emt 0:00:12]} 72. Ke4 {[%emt 0:00:37]} Qe1+ {[%emt 0:00:29]} 73. Kd5 {
[%emt 0:00:43]} Qd1+ {[%emt 0:01:06]} 74. Kc5 {[%emt 0:00:20]} Qd2 {[%emt 0:00:
00]} 75. Qc4+ {[%emt 0:00:45]} Ka3 {[%emt 0:00:07]} 76. Kb5 {[%emt 0:01:45]}
Qb2+ {[%emt 0:05:14]} 77. Kxa5 {[%emt 0:00:04]} 1-0

[Event "44th Chess Olympiad Open 2022"]
[Site "Chennai"]
[Date "2022.08.06"]
[Round "8.79"]
[White "Bongo Akanga Ndjila, Barthelemy"]
[Black "Lesbros Bernard"]
[Result "0-1"]
[WhiteElo "1803"]
[BlackElo "1865"]
[Annotator "NA RC"]
[PlyCount "58"]
[EventDate "2022.??.??"]
[TimeControl "60"]

1. d4 {[%emt 0:00:31]} Nf6 {[%emt 0:00:26]} 2. c4 {[%emt 0:00:05]} g6 {[%emt 0:
00:00]} 3. Nc3 {[%emt 0:00:06]} d5 {[%emt 0:00:07]} 4. cxd5 {[%emt 0:00:15]}
Nxd5 {[%emt 0:00:18]} 5. e4 {[%emt 0:00:05]} Nxc3 {[%emt 0:00:16]} 6. bxc3 {
[%emt 0:00:03]} Bg7 {[%emt 0:00:38]} 7. Rb1 {[%emt 0:00:06]} O-O {[%emt 0:00:
00]} 8. Nf3 {[%emt 0:02:05]} c5 {[%emt 0:00:27]} 9. Be2 {[%emt 0:00:33]} Qc7 {
[%emt 0:00:18]} 10. O-O {[%emt 0:00:22]} Nd7 {[%emt 0:01:22]} 11. Be3 {[%emt 0:
00:00]} Nf6 {[%emt 0:03:05]} 12. Qd3 {[%emt 0:03:06]} b6 {[%emt 0:07:17]} 13.
Nd2 {[%emt 0:06:52]} Bb7 {[%emt 0:04:37]} 14. d5 {[%emt 0:30:19]} Rad8 {
[%emt 0:04:01]} 15. c4 {[%emt 0:00:18]} e6 {[%emt 0:07:56]} 16. Bg5 {[%emt 0:
00:00]} exd5 {[%emt 0:01:48]} 17. exd5 {[%emt 0:14:00]} Rfe8 {[%emt 0:11:40]}
18. f4 {[%emt 0:06:07]} Bc8 {[%emt 0:08:22]} 19. Rbe1 {[%emt 0:06:09]} Bf5 {
[%emt 0:06:28]} 20. Qb3 {[%emt 0:00:41]} Rd7 {[%emt 0:02:09]} 21. Bxf6 {
[%emt 0:08:46]} Bxf6 {[%emt 0:01:44]} 22. g4 {[%emt 0:00:07]} Bd4+ {[%emt 0:00:
00]} 23. Kg2 {[%emt 0:00:29]} Rde7 {[%emt 0:02:56]} 24. Qd1 {[%emt 0:03:07]}
Bc2 {[%emt 0:04:31]} 25. Qxc2 {[%emt 0:02:01]} Rxe2+ {[%emt 0:00:08]} 26. Rxe2
{[%emt 0:00:06]} Rxe2+ {[%emt 0:00:11]} 27. Kf3 {[%emt 0:07:20]} Qe7 {[%emt 0:
00:00]} 28. Kg3 {[%emt 0:06:27]} Qe3+ {[%emt 0:01:21]} 29. Rf3 {[%emt 0:00:07]}
Qg1+ {[%emt 0:00:19]} 0-1

[Event "44th Chess Olympiad Open 2022"]
[Site "Chennai"]
[Date "2022.08.06"]
[Round "8.79"]
[White "Wane, Al Hassane"]
[Black "Bongo Ngombele, Tary"]
[Result "1-0"]
[WhiteElo "1750"]
[BlackElo "1688"]
[Annotator "NA RC"]
[PlyCount "135"]
[EventDate "2022.??.??"]
[TimeControl "60"]

1. d4 {[%emt 0:00:02]} d5 {[%emt 0:00:20]} 2. c4 {[%emt 0:00:11]} c6 {[%emt 0:
00:00]} 3. Nf3 {[%emt 0:00:34]} Nf6 {[%emt 0:00:18]} 4. e3 {[%emt 0:00:15]}
Nbd7 {[%emt 0:00:36]} 5. Bd3 {[%emt 0:00:13]} dxc4 {[%emt 0:01:00]} 6. Bxc4 {
[%emt 0:00:11]} e6 {[%emt 0:00:30]} 7. O-O {[%emt 0:00:12]} Bd6 {[%emt 0:00:25]
} 8. Nc3 {[%emt 0:01:07]} O-O {[%emt 0:02:15]} 9. e4 {[%emt 0:00:07]} e5 {
[%emt 0:03:11]} 10. Bg5 {[%emt 0:00:35]} exd4 {[%emt 0:00:45]} 11. Qxd4 {
[%emt 0:02:14]} Qe7 {[%emt 0:00:18]} 12. Rfe1 {[%emt 0:05:30]} Bc5 {[%emt 0:00:
00]} 13. Qd2 {[%emt 0:03:29]} Ne5 {[%emt 0:01:02]} 14. Nxe5 {[%emt 0:00:24]}
Qxe5 {[%emt 0:00:12]} 15. Rad1 {[%emt 0:06:36]} Ng4 {[%emt 0:05:02]} 16. Bf4 {
[%emt 0:06:12]} Qh5 {[%emt 0:01:57]} 17. Rf1 {[%emt 0:01:30]} b5 {[%emt 0:00:
00]} 18. Be2 {[%emt 0:01:03]} Qh4 {[%emt 0:08:11]} 19. Bg3 {[%emt 0:04:09]} Qf6
{[%emt 0:00:33]} 20. Bf3 {[%emt 0:00:50]} Ne5 {[%emt 0:00:41]} 21. Bxe5 {
[%emt 0:05:00]} Qxe5 {[%emt 0:00:10]} 22. g3 {[%emt 0:01:03]} Bh3 {[%emt 0:00:
00]} 23. Bg2 {[%emt 0:00:15]} Bxg2 {[%emt 0:00:13]} 24. Kxg2 {[%emt 0:00:13]}
b4 {[%emt 0:00:12]} 25. Na4 {[%emt 0:03:10]} Qxe4+ {[%emt 0:00:08]} 26. f3 {
[%emt 0:00:52]} Qe3 {[%emt 0:00:41]} 27. Qc2 {[%emt 0:01:45]} Bb6 {[%emt 0:00:
00]} 28. Rfe1 {[%emt 0:03:40]} Qh6 {[%emt 0:00:48]} 29. Re4 {[%emt 0:00:21]} c5
{[%emt 0:01:27]} 30. Nxc5 {[%emt 0:02:05]} Rfc8 {[%emt 0:00:35]} 31. Rc4 {
[%emt 0:06:57]} Qe3 {[%emt 0:06:24]} 32. Ne4 {[%emt 0:03:41]} Rc7 {[%emt 0:00:
00]} 33. Rxc7 {[%emt 0:00:35]} Bxc7 {[%emt 0:00:08]} 34. Qxc7 {[%emt 0:01:44]}
Qe2+ {[%emt 0:01:14]} 35. Nf2 {[%emt 0:04:26]} g6 {[%emt 0:07:32]} 36. Rd8+ {
[%emt 0:02:25]} Rxd8 {[%emt 0:00:32]} 37. Qxd8+ {[%emt 0:00:07]} Kg7 {[%emt 0:
00:00]} 38. Qd4+ {[%emt 0:00:06]} Kg8 {[%emt 0:01:05]} 39. Qxb4 {[%emt 0:00:18]
} Qa6 {[%emt 0:00:23]} 40. a3 {[%emt 0:01:33]} Qb6 {[%emt 0:03:16]} 41. Qxb6 {
[%emt 0:30:37]} axb6 {[%emt 0:30:08]} 42. Ne4 {[%emt 0:00:31]} f5 {[%emt 0:00:
00]} 43. Nf6+ {[%emt 0:00:44]} Kg7 {[%emt 0:00:09]} 44. Nd7 {[%emt 0:00:07]} b5
{[%emt 0:00:08]} 45. Ne5 {[%emt 0:00:38]} Kf6 {[%emt 0:00:34]} 46. f4 {[%emt 0:
00:00]} g5 {[%emt 0:00:18]} 47. Kf3 {[%emt 0:00:18]} Ke6 {[%emt 0:00:28]} 48.
Ke3 {[%emt 0:00:06]} Kd5 {[%emt 0:00:21]} 49. Kd3 {[%emt 0:00:53]} gxf4 {
[%emt 0:01:20]} 50. gxf4 {[%emt 0:00:02]} h5 {[%emt 0:01:14]} 51. h4 {[%emt 0:
00:00]} Kc5 {[%emt 0:00:30]} 52. Nf3 {[%emt 0:00:48]} b4 {[%emt 0:00:50]} 53.
Nd4 {[%emt 0:00:27]} bxa3 {[%emt 0:00:25]} 54. bxa3 {[%emt 0:00:36]} Kd5 {
[%emt 0:01:56]} 55. Nxf5 {[%emt 0:00:27]} Ke6 {[%emt 0:00:37]} 56. Ng7+ {
[%emt 0:01:03]} Kf6 {[%emt 0:00:10]} 57. Nxh5+ {[%emt 0:00:31]} Kf7 {[%emt 0:
00:00]} 58. a4 {[%emt 0:00:10]} Kg6 {[%emt 0:00:22]} 59. Ng3 {[%emt 0:00:26]}
Kh6 {[%emt 0:00:09]} 60. a5 {[%emt 0:00:08]} Kg6 {[%emt 0:00:07]} 61. a6 {
[%emt 0:00:09]} Kh6 {[%emt 0:00:10]} 62. a7 {[%emt 0:00:14]} Kg6 {[%emt 0:00:
00]} 63. a8=Q {[%emt 0:00:03]} Kh6 {[%emt 0:00:33]} 64. Qc6+ {[%emt 0:00:20]}
Kh7 {[%emt 0:00:23]} 65. Nf5 {[%emt 0:00:22]} Kg8 {[%emt 0:00:15]} 66. Qe6+ {
[%emt 0:00:29]} Kf8 {[%emt 0:00:11]} 67. Qe7+ {[%emt 0:00:16]} Kg8 {[%emt 0:00:
00]} 68. Qg7# {[%emt 0:00:10]} 1-0

[Event "44th Chess Olympiad Open 2022"]
[Site "Chennai"]
[Date "2022.08.06"]
[Round "8.80"]
[White "Sharikhan, Shawal"]
[Black "Drayton, Anthony"]
[Result "0-1"]
[WhiteElo "1789"]
[BlackElo "1928"]
[Annotator "NA RC"]
[PlyCount "96"]
[EventDate "2022.??.??"]
[TimeControl "60"]

1. d4 {[%emt 0:00:11]} d5 {[%emt 0:00:15]} 2. c4 {[%emt 0:00:05]} e6 {[%emt 0:
00:00]} 3. Nf3 {[%emt 0:00:38]} c6 {[%emt 0:00:31]} 4. cxd5 {[%emt 0:00:35]}
exd5 {[%emt 0:00:21]} 5. Bf4 {[%emt 0:00:53]} Nf6 {[%emt 0:00:29]} 6. e3 {
[%emt 0:01:00]} Bf5 {[%emt 0:00:51]} 7. Qb3 {[%emt 0:02:27]} Qb6 {[%emt 0:00:
00]} 8. Nbd2 {[%emt 0:01:51]} Qxb3 {[%emt 0:03:15]} 9. Nxb3 {[%emt 0:01:28]}
Bb4+ {[%emt 0:00:29]} 10. Nfd2 {[%emt 0:03:59]} Ne4 {[%emt 0:02:11]} 11. f3 {
[%emt 0:00:55]} Nxd2 {[%emt 0:00:19]} 12. Nxd2 {[%emt 0:00:26]} O-O {[%emt 0:
00:00]} 13. a3 {[%emt 0:01:42]} Be7 {[%emt 0:00:19]} 14. g4 {[%emt 0:02:34]}
Bh4+ {[%emt 0:08:35]} 15. Bg3 {[%emt 0:01:31]} Bxg3+ {[%emt 0:00:08]} 16. hxg3
{[%emt 0:00:05]} Bg6 {[%emt 0:03:02]} 17. Kf2 {[%emt 0:04:34]} Nd7 {[%emt 0:00:
00]} 18. Rc1 {[%emt 0:03:05]} Rfe8 {[%emt 0:01:50]} 19. Bg2 {[%emt 0:03:18]}
Re7 {[%emt 0:00:41]} 20. Rc3 {[%emt 0:08:49]} Nb6 {[%emt 0:03:19]} 21. b3 {
[%emt 0:02:52]} f6 {[%emt 0:03:43]} 22. Re1 {[%emt 0:00:40]} Rae8 {[%emt 0:00:
00]} 23. Bf1 {[%emt 0:01:13]} Nc8 {[%emt 0:01:42]} 24. Bd3 {[%emt 0:01:53]}
Bxd3 {[%emt 0:00:24]} 25. Rxd3 {[%emt 0:00:07]} Nd6 {[%emt 0:00:31]} 26. a4 {
[%emt 0:01:41]} h6 {[%emt 0:05:37]} 27. Rc3 {[%emt 0:00:47]} Kf7 {[%emt 0:00:
00]} 28. Rcc1 {[%emt 0:02:25]} f5 {[%emt 0:00:47]} 29. gxf5 {[%emt 0:05:54]}
Nxf5 {[%emt 0:00:12]} 30. Nf1 {[%emt 0:00:32]} h5 {[%emt 0:00:15]} 31. Rcd1 {
[%emt 0:03:16]} a5 {[%emt 0:02:41]} 32. Rd3 {[%emt 0:03:00]} g5 {[%emt 0:01:20]
} 33. Nd2 {[%emt 0:01:47]} Nd6 {[%emt 0:00:44]} 34. Rc3 {[%emt 0:01:39]} Kg6 {
[%emt 0:00:51]} 35. Rd3 {[%emt 0:06:19]} g4 {[%emt 0:01:33]} 36. f4 {[%emt 0:
00:00]} Nf5 {[%emt 0:04:06]} 37. Nf1 {[%emt 0:01:02]} Kf6 {[%emt 0:02:30]} 38.
Rd2 {[%emt 0:01:07]} Rg8 {[%emt 0:00:54]} 39. Kg1 {[%emt 0:09:19]} h4 {[%emt 0:
00:00]} 40. e4 {[%emt 0:07:25]} dxe4 {[%emt 0:00:39]} 41. d5 {[%emt 0:32:34]}
c5 {[%emt 0:30:46]} 42. d6 {[%emt 0:01:40]} Re6 {[%emt 0:00:14]} 43. d7 {
[%emt 0:04:24]} Nd4 {[%emt 0:01:19]} 44. Nh2 {[%emt 0:01:37]} hxg3 {[%emt 0:00:
00]} 45. Nxg4+ {[%emt 0:00:35]} Ke7 {[%emt 0:00:09]} 46. Ne5 {[%emt 0:02:51]}
Rxe5 {[%emt 0:00:21]} 47. Rxd4 {[%emt 0:00:13]} cxd4 {[%emt 0:00:07]} 48. fxe5
{[%emt 0:00:51]} e3 {[%emt 0:00:12]} 0-1

[Event "44th Chess Olympiad Open 2022"]
[Site "Chennai"]
[Date "2022.08.06"]
[Round "8.80"]
[White "Nathoo, Loris"]
[Black "Yussof, Pg Abd Rahman"]
[Result "1/2-1/2"]
[WhiteElo "1695"]
[BlackElo "1804"]
[Annotator "NA RC"]
[PlyCount "65"]
[EventDate "2022.??.??"]
[TimeControl "60"]

1. d4 {[%emt 0:00:10]} d6 {[%emt 0:00:36]} 2. Bf4 {[%emt 0:00:20]} Nf6 {
[%emt 0:00:51]} 3. Nc3 {[%emt 0:04:18]} Bf5 {[%emt 0:02:16]} 4. Nf3 {[%emt 0:
00:00]} Nbd7 {[%emt 0:01:59]} 5. e3 {[%emt 0:04:13]} e6 {[%emt 0:01:25]} 6. h3
{[%emt 0:04:18]} Be7 {[%emt 0:06:24]} 7. Bd3 {[%emt 0:02:02]} Bg6 {[%emt 0:00:
00]} 8. O-O {[%emt 0:08:12]} Nb6 {[%emt 0:03:46]} 9. Bh2 {[%emt 0:05:52]} O-O {
[%emt 0:00:43]} 10. Qe2 {[%emt 0:06:07]} Nfd5 {[%emt 0:03:21]} 11. Nxd5 {
[%emt 0:03:48]} Nxd5 {[%emt 0:00:51]} 12. Bxg6 {[%emt 0:00:09]} hxg6 {[%emt 0:
00:00]} 13. e4 {[%emt 0:03:27]} Nb6 {[%emt 0:01:12]} 14. Rfe1 {[%emt 0:02:23]}
a6 {[%emt 0:01:39]} 15. Rad1 {[%emt 0:00:37]} Rc8 {[%emt 0:03:24]} 16. Bf4 {
[%emt 0:09:35]} Nd7 {[%emt 0:03:39]} 17. Qd2 {[%emt 0:11:44]} Nb6 {[%emt 0:00:
00]} 18. Qe2 {[%emt 0:03:49]} Nd7 {[%emt 0:05:34]} 19. Qd3 {[%emt 0:01:25]} Nf6
{[%emt 0:02:06]} 20. c4 {[%emt 0:03:14]} Nh7 {[%emt 0:04:38]} 21. Qb3 {[%emt 0:
00:00]} Rb8 {[%emt 0:04:26]} 22. Be3 {[%emt 0:04:13]} b5 {[%emt 0:02:40]} 23.
c5 {[%emt 0:01:18]} Ng5 {[%emt 0:02:02]} 24. Nxg5 {[%emt 0:00:21]} Bxg5 {
[%emt 0:00:30]} 25. cxd6 {[%emt 0:00:42]} Bxe3 {[%emt 0:01:08]} 26. Rxe3 {
[%emt 0:00:52]} cxd6 {[%emt 0:01:12]} 27. Rc3 {[%emt 0:00:14]} Qb6 {[%emt 0:00:
00]} 28. Qc2 {[%emt 0:00:15]} Rfd8 {[%emt 0:01:10]} 29. Rc6 {[%emt 0:02:08]}
Qa7 {[%emt 0:01:34]} 30. Rc7 {[%emt 0:01:19]} Qb6 {[%emt 0:03:02]} 31. Rc6 {
[%emt 0:01:36]} Qa7 {[%emt 0:00:46]} 32. Rc7 {[%emt 0:00:10]} Qb6 {[%emt 0:00:
00]} 33. Rc6 {[%emt 0:00:42]} 1/2-1/2

[Event "44th Chess Olympiad Open 2022"]
[Site "Chennai"]
[Date "2022.08.06"]
[Round "8.81"]
[White "Ashraf, Ahmed Ramadan"]
[Black "Young, Christopher"]
[Result "1/2-1/2"]
[WhiteElo "1916"]
[BlackElo "1990"]
[Annotator "NA RC"]
[PlyCount "126"]
[EventDate "2022.??.??"]
[TimeControl "60"]

1. e4 {[%emt 0:00:04]} c5 {[%emt 0:00:03]} 2. Nf3 {[%emt 0:00:06]} e6 {[%emt 0:
00:00]} 3. Nc3 {[%emt 0:00:06]} a6 {[%emt 0:00:20]} 4. d4 {[%emt 0:00:43]} cxd4
{[%emt 0:00:04]} 5. Nxd4 {[%emt 0:00:05]} Qc7 {[%emt 0:00:15]} 6. Be2 {[%emt 0:
00:00]} Nf6 {[%emt 0:00:18]} 7. Bg5 {[%emt 0:00:21]} Be7 {[%emt 0:00:14]} 8.
Qd2 {[%emt 0:00:39]} b5 {[%emt 0:02:46]} 9. a3 {[%emt 0:03:12]} Bb7 {[%emt 0:
00:00]} 10. f3 {[%emt 0:01:25]} Nc6 {[%emt 0:00:35]} 11. Nxc6 {[%emt 0:02:14]}
Bxc6 {[%emt 0:01:56]} 12. g4 {[%emt 0:01:12]} Rc8 {[%emt 0:32:19]} 13. Qe3 {
[%emt 0:29:52]} Bb7 {[%emt 0:15:39]} 14. Qd3 {[%emt 0:09:39]} d5 {[%emt 0:00:
00]} 15. exd5 {[%emt 0:12:44]} Nxd5 {[%emt 0:11:46]} 16. Nxd5 {[%emt 0:05:54]}
Bxd5 {[%emt 0:00:09]} 17. Bxe7 {[%emt 0:00:41]} Qxe7 {[%emt 0:04:10]} 18. h4 {
[%emt 0:02:39]} O-O {[%emt 0:04:47]} 19. c3 {[%emt 0:05:09]} Rfd8 {[%emt 0:00:
00]} 20. Qe3 {[%emt 0:01:29]} Qc7 {[%emt 0:03:58]} 21. O-O-O {[%emt 0:01:08]}
Bc4 {[%emt 0:01:30]} 22. h5 {[%emt 0:03:08]} Bxe2 {[%emt 0:01:58]} 23. Qxe2 {
[%emt 0:00:01]} Qf4+ {[%emt 0:01:10]} 24. Kb1 {[%emt 0:00:17]} h6 {[%emt 0:00:
00]} 25. Rhe1 {[%emt 0:01:32]} Kf8 {[%emt 0:02:17]} 26. Rd3 {[%emt 0:05:29]}
Ke7 {[%emt 0:00:54]} 27. Red1 {[%emt 0:00:29]} Rxd3 {[%emt 0:00:30]} 28. Qxd3 {
[%emt 0:00:13]} Qc7 {[%emt 0:00:34]} 29. Kc2 {[%emt 0:02:57]} Rb8 {[%emt 0:00:
00]} 30. Qd4 {[%emt 0:00:15]} f6 {[%emt 0:01:00]} 31. f4 {[%emt 0:00:26]} Rb6 {
[%emt 0:00:46]} 32. g5 {[%emt 0:00:44]} Rd6 {[%emt 0:00:45]} 33. Qxd6+ {
[%emt 0:01:26]} Qxd6 {[%emt 0:00:02]} 34. Rxd6 {[%emt 0:00:02]} Kxd6 {[%emt 0:
00:00]} 35. gxh6 {[%emt 0:00:34]} gxh6 {[%emt 0:00:02]} 36. Kd3 {[%emt 0:00:14]
} Kd5 {[%emt 0:00:19]} 37. b3 {[%emt 0:00:26]} a5 {[%emt 0:00:33]} 38. Ke3 {
[%emt 0:00:53]} e5 {[%emt 0:02:05]} 39. fxe5 {[%emt 0:00:22]} Kxe5 {[%emt 0:00:
00]} 40. Kf3 {[%emt 0:01:03]} a4 {[%emt 0:00:48]} 41. bxa4 {[%emt 0:18:27]}
bxa4 {[%emt 0:00:17]} 42. Ke3 {[%emt 0:00:05]} Kd5 {[%emt 0:12:31]} 43. Kf4 {
[%emt 0:11:29]} Kc4 {[%emt 0:00:07]} 44. Kf5 {[%emt 0:00:08]} Kb3 {[%emt 0:00:
00]} 45. c4 {[%emt 0:01:08]} Kxc4 {[%emt 0:04:11]} 46. Kg6 {[%emt 0:03:43]} f5
{[%emt 0:02:23]} 47. Kxf5 {[%emt 0:03:03]} Kb3 {[%emt 0:00:07]} 48. Kg6 {
[%emt 0:00:10]} Kxa3 {[%emt 0:00:06]} 49. Kxh6 {[%emt 0:00:07]} Kb4 {[%emt 0:
00:00]} 50. Kg7 {[%emt 0:00:24]} a3 {[%emt 0:00:10]} 51. h6 {[%emt 0:00:02]} a2
{[%emt 0:00:11]} 52. h7 {[%emt 0:00:06]} a1=Q+ {[%emt 0:00:05]} 53. Kg8 {
[%emt 0:00:15]} Qa2+ {[%emt 0:03:07]} 54. Kg7 {[%emt 0:00:03]} Qb2+ {[%emt 0:
00:00]} 55. Kg8 {[%emt 0:00:04]} Qb3+ {[%emt 0:00:17]} 56. Kg7 {[%emt 0:00:25]}
Qc3+ {[%emt 0:01:16]} 57. Kg8 {[%emt 0:00:02]} Qc4+ {[%emt 0:01:34]} 58. Kg7 {
[%emt 0:00:02]} Qg4+ {[%emt 0:00:24]} 59. Kh8 {[%emt 0:00:06]} Qh4 {[%emt 0:00:
00]} 60. Kg7 {[%emt 0:00:13]} Qg5+ {[%emt 0:00:33]} 61. Kh8 {[%emt 0:00:08]}
Qe7 {[%emt 0:01:34]} 62. Kg8 {[%emt 0:00:05]} Qe6+ {[%emt 0:01:06]} 63. Kg7 {
[%emt 0:00:03]} Qe7+ {[%emt 0:01:02]} 1/2-1/2

[Event "44th Chess Olympiad Open 2022"]
[Site "Chennai"]
[Date "2022.08.06"]
[Round "8.81"]
[White "Tracey, Shaun M"]
[Black "Fuad, Ahmed Mufleh"]
[Result "1/2-1/2"]
[WhiteElo "1650"]
[BlackElo "2086"]
[Annotator "NA RC"]
[PlyCount "103"]
[EventDate "2022.??.??"]
[TimeControl "60"]

1. e4 {[%emt 0:00:02]} e6 {[%emt 0:00:08]} 2. d4 {[%emt 0:00:05]} d5 {[%emt 0:
00:00]} 3. Bd3 {[%emt 0:00:14]} Bd7 {[%emt 0:01:50]} 4. e5 {[%emt 0:07:00]} c5
{[%emt 0:00:10]} 5. c3 {[%emt 0:00:07]} Nc6 {[%emt 0:00:08]} 6. Nf3 {[%emt 0:
00:00]} cxd4 {[%emt 0:00:08]} 7. cxd4 {[%emt 0:00:08]} Qb6 {[%emt 0:00:08]} 8.
Be2 {[%emt 0:02:02]} Nge7 {[%emt 0:01:42]} 9. Na3 {[%emt 0:04:15]} Nf5 {
[%emt 0:00:42]} 10. Nc2 {[%emt 0:00:42]} Nb4 {[%emt 0:03:02]} 11. Na3 {[%emt 0:
00:00]} Be7 {[%emt 0:03:39]} 12. O-O {[%emt 0:03:21]} Rc8 {[%emt 0:06:34]} 13.
Qd2 {[%emt 0:12:55]} Kd8 {[%emt 0:12:59]} 14. Rd1 {[%emt 0:02:45]} Kc7 {
[%emt 0:12:20]} 15. Qf4 {[%emt 0:10:40]} h6 {[%emt 0:01:19]} 16. Qd2 {[%emt 0:
00:00]} g5 {[%emt 0:00:48]} 17. Ne1 {[%emt 0:01:40]} f6 {[%emt 0:02:13]} 18. b3
{[%emt 0:05:25]} fxe5 {[%emt 0:00:36]} 19. dxe5 {[%emt 0:12:42]} Rcf8 {[%emt 0:
00:00]} 20. Nac2 {[%emt 0:04:18]} Nc6 {[%emt 0:04:16]} 21. Nd3 {[%emt 0:01:13]}
Rf7 {[%emt 0:01:47]} 22. Ba3 {[%emt 0:01:52]} Rhf8 {[%emt 0:02:58]} 23. Bh5 {
[%emt 0:03:06]} Rg7 {[%emt 0:02:13]} 24. Bxe7 {[%emt 0:01:02]} Ncxe7 {[%emt 0:
00:00]} 25. Be2 {[%emt 0:01:27]} Kb8 {[%emt 0:02:20]} 26. Qb4 {[%emt 0:01:48]}
Qxb4 {[%emt 0:04:11]} 27. Ndxb4 {[%emt 0:01:16]} Ng6 {[%emt 0:00:37]} 28. Nd3 {
[%emt 0:00:45]} Bb5 {[%emt 0:00:51]} 29. Re1 {[%emt 0:00:33]} Bxd3 {[%emt 0:00:
00]} 30. Bxd3 {[%emt 0:00:01]} Nf4 {[%emt 0:02:12]} 31. Bf1 {[%emt 0:01:30]}
Rgf7 {[%emt 0:00:44]} 32. Rad1 {[%emt 0:01:30]} Rc7 {[%emt 0:01:55]} 33. Rd2 {
[%emt 0:01:26]} Rfc8 {[%emt 0:01:02]} 34. Nb4 {[%emt 0:00:13]} a5 {[%emt 0:00:
00]} 35. Nd3 {[%emt 0:00:28]} Ng6 {[%emt 0:04:57]} 36. g3 {[%emt 0:00:32]} Rc2
{[%emt 0:01:02]} 37. Ree2 {[%emt 0:01:06]} Rxd2 {[%emt 0:03:56]} 38. Rxd2 {
[%emt 0:00:01]} Nd4 {[%emt 0:01:11]} 39. Kg2 {[%emt 0:00:56]} Rc2 {[%emt 0:00:
00]} 40. Rxc2 {[%emt 0:00:53]} Nxc2 {[%emt 0:00:09]} 41. Be2 {[%emt 0:31:16]}
b6 {[%emt 0:32:47]} 42. Bh5 {[%emt 0:00:00]} Nf8 {[%emt 0:00:00]} 43. Kf3 {
[%emt 0:00:00]} Kc7 {[%emt 0:00:00]} 44. Bf7 {[%emt 0:00:00]} Kd7 {[%emt 0:00:
00]} 45. Kg4 {[%emt 0:00:00]} Ke7 {[%emt 0:00:00]} 46. Bg8 {[%emt 0:00:00]} Nb4
{[%emt 0:00:00]} 47. Nxb4 {[%emt 0:00:00]} axb4 {[%emt 0:00:00]} 48. f4 {
[%emt 0:00:00]} gxf4 {[%emt 0:00:00]} 49. gxf4 {[%emt 0:00:00]} Nd7 {[%emt 0:
00:00]} 50. Bh7 {[%emt 0:00:00]} Kf7 {[%emt 0:00:00]} 51. Kf3 {[%emt 0:00:00]}
Nc5 {[%emt 0:00:00]} 52. Ke3 {[%emt 0:00:00]} 1/2-1/2